[Event "Titled Tuesday Blitz April 18 Late 2023"]
[White "BebeBonito2022"]
[Black "Hirneise, Jens"]
[BlackFideId "24614734"]
[WhiteElo "2199"]
[BlackElo "2345"]
[Result "0-1"]
[Round "05"]
[TimeControl "180+2"]
[Date "2023.04.18"]
[WhiteClock "0:00:05"]
[BlackClock "0:00:10"]

1. d4 {[%clk 0:03:00]}  f5 {[%clk 0:02:20]} 2. Nc3 {[%clk 0:02:59]}  d5 {[%clk 0:02:18]} 3. Bf4 {[%clk 0:02:58]}  Nf6 {[%clk 0:02:15]} 4. e3 {[%clk 0:02:58]}  e6 {[%clk 0:02:10]} 5. Bd3 {[%clk 0:02:57]}  Bd6 {[%clk 0:02:10]} 6. Nce2 {[%clk 0:02:41]}  O-O {[%clk 0:02:10]} 7. Nf3 {[%clk 0:02:40]}  Bd7 {[%clk 0:02:07]} 8. c4 {[%clk 0:02:37]}  Bb4+ {[%clk 0:02:02]} 9. Nc3 {[%clk 0:02:36]}  Ne4 {[%clk 0:02:01]} 10. Qc2 {[%clk 0:02:28]}  Nc6 {[%clk 0:01:46]} 11. O-O {[%clk 0:02:17]}  Bxc3 {[%clk 0:01:46]} 12. bxc3 {[%clk 0:02:17]}  g5 {[%clk 0:01:41]} 13. Be5 {[%clk 0:02:04]}  g4 {[%clk 0:01:39]} 14. Nd2 {[%clk 0:02:04]}  Nxe5 {[%clk 0:01:36]} 15. dxe5 {[%clk 0:02:05]}  Bc6 {[%clk 0:01:23]} 16. Rad1 {[%clk 0:01:58]}  Qe7 {[%clk 0:01:17]} 17. Nb3 {[%clk 0:01:51]}  Kh8 {[%clk 0:01:09]} 18. Nd4 {[%clk 0:01:49]}  Rg8 {[%clk 0:01:02]} 19. Nxc6 {[%clk 0:01:47]}  bxc6 {[%clk 0:01:02]} 20. Bxe4 {[%clk 0:01:43]}  fxe4 {[%clk 0:01:00]} 21. Kh1 {[%clk 0:01:12]}  Rg5 {[%clk 0:00:59]} 22. f4 {[%clk 0:01:10]}  gxf3 {[%clk 0:00:52]} 23. gxf3 {[%clk 0:01:11]}  exf3 {[%clk 0:00:49]} 24. Rxf3 {[%clk 0:01:09]}  Rag8 {[%clk 0:00:42]} 25. Rdf1 {[%clk 0:01:09]}  Qg7 {[%clk 0:00:42]} 26. Qd1 {[%clk 0:00:47]}  Rxe5 {[%clk 0:00:37]} 27. Rg3 {[%clk 0:00:39]}  Rg5 {[%clk 0:00:33]} 28. Rfg1 {[%clk 0:00:27]}  Rxg3 {[%clk 0:00:29]} 29. Rxg3 {[%clk 0:00:27]}  Qxc3 {[%clk 0:00:27]} 30. Rxg8+ {[%clk 0:00:16]}  Kxg8 {[%clk 0:00:28]} 31. Qg4+ {[%clk 0:00:16]}  Kf7 {[%clk 0:00:22]} 32. Qh5+ {[%clk 0:00:15]}  Ke7 {[%clk 0:00:18]} 33. Qxh7+ {[%clk 0:00:15]}  Kd6 {[%clk 0:00:18]} 34. Qh3 {[%clk 0:00:08]}  Qa1+ {[%clk 0:00:17]} 35. Kg2 {[%clk 0:00:08]}  Qxa2+ {[%clk 0:00:18]} 36. Kf3 {[%clk 0:00:08]}  Qxc4 {[%clk 0:00:18]} 37. Qg3+ {[%clk 0:00:09]}  e5 {[%clk 0:00:15]} 38. Qg6+ {[%clk 0:00:08]}  Kc5 {[%clk 0:00:16]} 39. h4 {[%clk 0:00:08]}  Qxh4 {[%clk 0:00:13]} 40. Qe8 {[%clk 0:00:07]}  Qe4+ {[%clk 0:00:12]} 41. Ke2 {[%clk 0:00:08]}  Qc4+ {[%clk 0:00:12]} 42. Kf2 {[%clk 0:00:07]}  Qc2+ {[%clk 0:00:12]} 43. Kf3 {[%clk 0:00:07]}  e4+ {[%clk 0:00:10]} 44. Kf4 {[%clk 0:00:08]}  Qf2+ {[%clk 0:00:09]} 45. Ke5 {[%clk 0:00:08]}  Qxe3 {[%clk 0:00:08]} 46. Qe7+ {[%clk 0:00:08]}  Kc4 {[%clk 0:00:07]} 47. Qxc7 {[%clk 0:00:08]}  Qd4+ {[%clk 0:00:08]} 48. Ke6 {[%clk 0:00:08]}  Qc5 {[%clk 0:00:08]} 49. Qg3 {[%clk 0:00:06]}  e3 {[%clk 0:00:08]} 50. Qe1 {[%clk 0:00:06]}  Qd4 {[%clk 0:00:07]} 51. Qc1+ {[%clk 0:00:05]}  Qc3 {[%clk 0:00:07]} 52. Qf1+ {[%clk 0:00:05]}  Qd3 {[%clk 0:00:07]} 53. Qc1+ {[%clk 0:00:05]}  Kd4 {[%clk 0:00:08]} 54. Qb2+ {[%clk 0:00:05]}  Qc3 {[%clk 0:00:08]} 55. Qg2 {[%clk 0:00:04]}  Kd3 {[%clk 0:00:08]} 56. Qf1+ {[%clk 0:00:04]}  e2 {[%clk 0:00:09]} 57. Qf3+ {[%clk 0:00:04]}  Kd2 {[%clk 0:00:09]} 58. Qf4+ {[%clk 0:00:05]}  Qe3+ {[%clk 0:00:10]} 59. Qxe3+ {[%clk 0:00:05]}  Kxe3 {[%clk 0:00:10]} 0-1


[Site "https://www.chess.com"]

[Event "Titled Tuesday Blitz April 18 Late 2023"]
[White "Gardezi, Arsal"]
[Black "Karthik, Advaith"]
[WhiteFideId "30949521"]
[BlackFideId "30946050"]
[WhiteElo "1906"]
[BlackElo "2004"]
[Result "0-1"]
[Round "05"]
[TimeControl "180+2"]
[Date "2023.04.18"]
[WhiteClock "0:00:18"]
[BlackClock "0:01:28"]

1. d4 {[%clk 0:03:00]}  Nf6 {[%clk 0:02:56]} 2. c4 {[%clk 0:02:59]}  e6 {[%clk 0:02:47]} 3. Nc3 {[%clk 0:02:58]}  Bb4 {[%clk 0:02:47]} 4. Qc2 {[%clk 0:02:53]}  O-O {[%clk 0:02:45]} 5. Nf3 {[%clk 0:02:52]}  b6 {[%clk 0:02:45]} 6. e3 {[%clk 0:02:47]}  Bb7 {[%clk 0:02:45]} 7. Be2 {[%clk 0:02:46]}  Ne4 {[%clk 0:02:43]} 8. O-O {[%clk 0:02:45]}  Bxc3 {[%clk 0:02:40]} 9. bxc3 {[%clk 0:02:44]}  d6 {[%clk 0:02:41]} 10. Ba3 {[%clk 0:02:39]}  Re8 {[%clk 0:02:39]} 11. Bd3 {[%clk 0:02:40]}  Nf6 {[%clk 0:02:36]} 12. e4 {[%clk 0:02:38]}  e5 {[%clk 0:02:37]} 13. d5 {[%clk 0:02:37]}  Nbd7 {[%clk 0:02:29]} 14. Rab1 {[%clk 0:02:37]}  a5 {[%clk 0:02:28]} 15. Nd2 {[%clk 0:02:35]}  Ba6 {[%clk 0:02:27]} 16. Kh1 {[%clk 0:02:31]}  Ng4 {[%clk 0:02:23]} 17. Qd1 {[%clk 0:02:29]}  Qh4 {[%clk 0:02:22]} 18. Nf3 {[%clk 0:02:11]}  Nxf2+ {[%clk 0:02:18]} 19. Kg1 {[%clk 0:02:10]}  Nxd1 {[%clk 0:02:18]} 20. Nxh4 {[%clk 0:02:09]}  Ne3 {[%clk 0:02:15]} 21. Rf3 {[%clk 0:02:01]}  Nxc4 {[%clk 0:02:13]} 22. Bc1 {[%clk 0:02:01]}  Nc5 {[%clk 0:02:01]} 23. Bf1 {[%clk 0:01:56]}  Nxe4 {[%clk 0:01:58]} 24. Bd3 {[%clk 0:00:25]}  Ned2 {[%clk 0:01:44]} 25. Rg3 {[%clk 0:00:23]}  Nxb1 {[%clk 0:01:36]} 26. Bxb1 {[%clk 0:00:18]}  e4 {[%clk 0:01:28]} 0-1


[Site "https://www.chess.com"]

[Event "Titled Tuesday Blitz April 18 Late 2023"]
[White "Prohorov, Olexandr"]
[Black "Rose, Felix"]
[WhiteFideId "14105578"]
[BlackFideId "5105722"]
[WhiteElo "1966"]
[BlackElo "2039"]
[Result "1-0"]
[Round "05"]
[TimeControl "180+2"]
[Date "2023.04.18"]
[WhiteClock "0:01:20"]
[BlackClock "0:00:04"]

1. d4 {[%clk 0:02:57]}  d5 {[%clk 0:01:06]} 2. c4 {[%clk 0:02:55]}  e6 {[%clk 0:01:05]} 3. Nc3 {[%clk 0:02:54]}  Nf6 {[%clk 0:01:05]} 4. Nf3 {[%clk 0:02:55]}  Be7 {[%clk 0:01:06]} 5. Bf4 {[%clk 0:02:55]}  O-O {[%clk 0:01:06]} 6. e3 {[%clk 0:02:56]}  b6 {[%clk 0:01:06]} 7. Rc1 {[%clk 0:02:55]}  c5 {[%clk 0:01:05]} 8. a3 {[%clk 0:02:53]}  Bb7 {[%clk 0:01:01]} 9. cxd5 {[%clk 0:02:53]}  Nxd5 {[%clk 0:01:01]} 10. Bg3 {[%clk 0:02:48]}  Nc6 {[%clk 0:00:58]} 11. Bd3 {[%clk 0:02:48]}  cxd4 {[%clk 0:00:56]} 12. exd4 {[%clk 0:02:47]}  Bf6 {[%clk 0:00:52]} 13. Qe2 {[%clk 0:02:45]}  g6 {[%clk 0:00:21]} 14. Qe4 {[%clk 0:02:26]}  Nxc3 {[%clk 0:00:15]} 15. bxc3 {[%clk 0:02:27]}  Na5 {[%clk 0:00:15]} 16. Qg4 {[%clk 0:02:25]}  Rc8 {[%clk 0:00:15]} 17. O-O {[%clk 0:02:21]}  Qd5 {[%clk 0:00:15]} 18. Rfe1 {[%clk 0:02:19]}  Bg7 {[%clk 0:00:15]} 19. Ne5 {[%clk 0:02:15]}  Qa2 {[%clk 0:00:13]} 20. h4 {[%clk 0:02:12]}  Qxa3 {[%clk 0:00:13]} 21. h5 {[%clk 0:02:11]}  Rxc3 {[%clk 0:00:13]} 22. hxg6 {[%clk 0:02:09]}  hxg6 {[%clk 0:00:12]} 23. Rxc3 {[%clk 0:02:02]}  Qxc3 {[%clk 0:00:12]} 24. Re3 {[%clk 0:01:31]}  Qc8 {[%clk 0:00:06]} 25. Nxg6 {[%clk 0:01:22]}  fxg6 {[%clk 0:00:06]} 26. Qxg6 {[%clk 0:01:23]}  Qc6 {[%clk 0:00:04]} 27. Qh7+ {[%clk 0:01:20]}  Kf7 {[%clk 0:00:04]} 28. Bg6+ {[%clk 0:01:20]} 1-0


[Site "https://www.chess.com"]

[Event "Titled Tuesday Blitz April 18 Late 2023"]
[White "Tyagi, Kushan"]
[Black "Joubert, Dantelle"]
[WhiteFideId "2040069"]
[BlackFideId "14310813"]
[WhiteElo "2270"]
[BlackElo "1507"]
[Result "1-0"]
[Round "05"]
[TimeControl "180+2"]
[Date "2023.04.18"]
[WhiteClock "0:00:12"]
[BlackClock "0:00:19"]

1. d4 {[%clk 0:03:00]}  Nf6 {[%clk 0:02:58]} 2. c4 {[%clk 0:02:52]}  e6 {[%clk 0:02:58]} 3. g3 {[%clk 0:02:47]}  Bb4+ {[%clk 0:02:56]} 4. Bd2 {[%clk 0:02:47]}  Qe7 {[%clk 0:02:54]} 5. Bg2 {[%clk 0:02:45]}  Nc6 {[%clk 0:02:53]} 6. Nf3 {[%clk 0:02:45]}  O-O {[%clk 0:02:52]} 7. O-O {[%clk 0:02:45]}  Bxd2 {[%clk 0:02:50]} 8. Nbxd2 {[%clk 0:02:45]}  d6 {[%clk 0:02:50]} 9. e4 {[%clk 0:02:44]}  e5 {[%clk 0:02:49]} 10. d5 {[%clk 0:02:45]}  Nb8 {[%clk 0:02:48]} 11. b4 {[%clk 0:02:44]}  a5 {[%clk 0:02:47]} 12. a3 {[%clk 0:02:43]}  Na6 {[%clk 0:02:47]} 13. Qb3 {[%clk 0:02:35]}  c6 {[%clk 0:02:42]} 14. Ne1 {[%clk 0:02:27]}  Bg4 {[%clk 0:02:39]} 15. f3 {[%clk 0:02:27]}  Bd7 {[%clk 0:02:38]} 16. Nd3 {[%clk 0:02:24]}  cxd5 {[%clk 0:02:36]} 17. exd5 {[%clk 0:02:21]}  Bf5 {[%clk 0:02:21]} 18. Rae1 {[%clk 0:02:14]}  Bxd3 {[%clk 0:02:18]} 19. Qxd3 {[%clk 0:02:07]}  axb4 {[%clk 0:02:19]} 20. axb4 {[%clk 0:02:02]}  Nxb4 {[%clk 0:02:18]} 21. Qb3 {[%clk 0:02:03]}  Na6 {[%clk 0:02:11]} 22. f4 {[%clk 0:02:03]}  Nc5 {[%clk 0:02:09]} 23. Qc3 {[%clk 0:02:01]}  Nfd7 {[%clk 0:02:03]} 24. fxe5 {[%clk 0:01:55]}  Nxe5 {[%clk 0:02:03]} 25. Nf3 {[%clk 0:01:37]}  f6 {[%clk 0:01:51]} 26. Nd4 {[%clk 0:01:35]}  Ra2 {[%clk 0:01:46]} 27. Bh3 {[%clk 0:01:21]}  Qf7 {[%clk 0:01:38]} 28. Ne6 {[%clk 0:01:11]}  Qh5 {[%clk 0:01:35]} 29. Nf4 {[%clk 0:00:55]}  Qh6 {[%clk 0:01:21]} 30. Ra1 {[%clk 0:00:31]}  Rxa1 {[%clk 0:01:17]} 31. Rxa1 {[%clk 0:00:32]}  g5 {[%clk 0:01:16]} 32. Be6+ {[%clk 0:00:32]}  Kg7 {[%clk 0:01:12]} 33. Ne2 {[%clk 0:00:27]}  Re8 {[%clk 0:01:10]} 34. Nd4 {[%clk 0:00:26]}  g4 {[%clk 0:01:05]} 35. Nf5+ {[%clk 0:00:25]}  Kg6 {[%clk 0:00:58]} 36. Nxh6 {[%clk 0:00:26]}  Kxh6 {[%clk 0:00:59]} 37. Rf1 {[%clk 0:00:26]}  Kg7 {[%clk 0:00:56]} 38. Bf5 {[%clk 0:00:24]}  h5 {[%clk 0:00:54]} 39. Rb1 {[%clk 0:00:22]}  Nf3+ {[%clk 0:00:46]} 40. Kf2 {[%clk 0:00:21]}  Re5 {[%clk 0:00:42]} 41. Bc2 {[%clk 0:00:18]}  Kh6 {[%clk 0:00:35]} 42. h3 {[%clk 0:00:18]}  Kg5 {[%clk 0:00:34]} 43. hxg4 {[%clk 0:00:18]}  hxg4 {[%clk 0:00:34]} 44. Rh1 {[%clk 0:00:17]}  Ne4+ {[%clk 0:00:27]} 45. Bxe4 {[%clk 0:00:16]}  Rxe4 {[%clk 0:00:28]} 46. Qc1+ {[%clk 0:00:15]}  Kf5 {[%clk 0:00:26]} 47. Rh5+ {[%clk 0:00:15]}  Ng5 {[%clk 0:00:27]} 48. Qc2 {[%clk 0:00:14]}  Ke5 {[%clk 0:00:25]} 49. c5 {[%clk 0:00:13]}  dxc5 {[%clk 0:00:24]} 50. Qxc5 {[%clk 0:00:12]}  Rd4 {[%clk 0:00:23]} 51. d6+ {[%clk 0:00:12]}  Rd5 {[%clk 0:00:23]} 52. Qc3+ {[%clk 0:00:12]}  Kxd6 {[%clk 0:00:21]} 53. Qxf6+ {[%clk 0:00:12]}  Kc5 {[%clk 0:00:19]} 54. Rxg5 {[%clk 0:00:12]} 1-0


[Site "https://www.chess.com"]

[Event "Titled Tuesday Blitz April 18 Late 2023"]
[White "Nakamura, Hikaru"]
[Black "Bortnyk, Olexandr"]
[WhiteFideId "2016192"]
[BlackFideId "14120828"]
[WhiteElo "2885"]
[BlackElo "2734"]
[Result "1-0"]
[Round "06"]
[TimeControl "180+2"]
[Date "2023.04.18"]
[WhiteClock "0:00:12"]
[BlackClock "0:00:01"]

1. Nf3 {[%clk 0:03:00]}  Nf6 {[%clk 0:02:59]} 2. c4 {[%clk 0:03:00]}  b6 {[%clk 0:03:00]} 3. d3 {[%clk 0:02:58]}  Bb7 {[%clk 0:03:01]} 4. e4 {[%clk 0:02:58]}  d6 {[%clk 0:03:01]} 5. g3 {[%clk 0:02:58]}  c5 {[%clk 0:03:01]} 6. Bg2 {[%clk 0:02:59]}  g6 {[%clk 0:03:02]} 7. O-O {[%clk 0:02:59]}  Bg7 {[%clk 0:03:02]} 8. Nh4 {[%clk 0:03:00]}  Nc6 {[%clk 0:02:56]} 9. f4 {[%clk 0:03:00]}  e6 {[%clk 0:02:42]} 10. Bd2 {[%clk 0:02:56]}  Nd7 {[%clk 0:02:40]} 11. Bc3 {[%clk 0:02:56]}  Nd4 {[%clk 0:02:33]} 12. Nd2 {[%clk 0:02:56]}  Qe7 {[%clk 0:02:19]} 13. Nhf3 {[%clk 0:02:46]}  O-O {[%clk 0:02:17]} 14. Rc1 {[%clk 0:02:33]}  a5 {[%clk 0:02:15]} 15. b3 {[%clk 0:02:24]}  Nxf3+ {[%clk 0:02:11]} 16. Bxf3 {[%clk 0:02:19]}  Bxc3 {[%clk 0:02:12]} 17. Rxc3 {[%clk 0:02:19]}  a4 {[%clk 0:02:10]} 18. Rc2 {[%clk 0:02:06]}  axb3 {[%clk 0:02:09]} 19. Nxb3 {[%clk 0:02:07]}  Ra3 {[%clk 0:02:04]} 20. Qd2 {[%clk 0:01:59]}  Rfa8 {[%clk 0:02:04]} 21. Rb2 {[%clk 0:02:00]}  Bc6 {[%clk 0:01:59]} 22. Nc1 {[%clk 0:01:58]}  f5 {[%clk 0:01:38]} 23. exf5 {[%clk 0:01:36]}  Bxf3 {[%clk 0:01:36]} 24. fxe6 {[%clk 0:01:37]}  Qxe6 {[%clk 0:01:08]} 25. Rxf3 {[%clk 0:01:35]}  d5 {[%clk 0:01:08]} 26. Re3 {[%clk 0:01:20]}  Qd6 {[%clk 0:01:05]} 27. cxd5 {[%clk 0:01:08]}  Qxd5 {[%clk 0:01:05]} 28. Qe2 {[%clk 0:01:06]}  Rf8 {[%clk 0:00:46]} 29. h3 {[%clk 0:01:02]}  Rc3 {[%clk 0:00:30]} 30. Nb3 {[%clk 0:00:55]}  b5 {[%clk 0:00:29]} 31. Kh2 {[%clk 0:00:37]}  Rf7 {[%clk 0:00:27]} 32. Nd2 {[%clk 0:00:37]}  b4 {[%clk 0:00:22]} 33. Ne4 {[%clk 0:00:35]}  Ra3 {[%clk 0:00:20]} 34. Rc2 {[%clk 0:00:25]}  h6 {[%clk 0:00:19]} 35. h4 {[%clk 0:00:23]}  Kg7 {[%clk 0:00:19]} 36. Nf2 {[%clk 0:00:20]}  Ra7 {[%clk 0:00:10]} 37. Ng4 {[%clk 0:00:20]}  h5 {[%clk 0:00:06]} 38. Ne5 {[%clk 0:00:20]}  Rf6 {[%clk 0:00:02]} 39. Nf3 {[%clk 0:00:17]}  Nf8 {[%clk 0:00:01]} 40. Ng5 {[%clk 0:00:16]}  Kg8 {[%clk 0:00:01]} 41. Re5 {[%clk 0:00:16]}  Qd4 {[%clk 0:00:01]} 42. Rexc5 {[%clk 0:00:16]}  Rd6 {[%clk 0:00:01]} 43. Rc8 {[%clk 0:00:13]}  Qxd3 {[%clk 0:00:01]} 44. Qe8 {[%clk 0:00:12]} 1-0


[Site "https://www.chess.com"]

[Event "Titled Tuesday Blitz April 18 Late 2023"]
[White "Firouzja, Alireza"]
[Black "Vachier-Lagrave, Maxime"]
[WhiteFideId "12573981"]
[BlackFideId "623539"]
[WhiteElo "2904"]
[BlackElo "2740"]
[Result "0-1"]
[Round "06"]
[TimeControl "180+2"]
[Date "2023.04.18"]
[WhiteClock "0:00:08"]
[BlackClock "0:00:37"]

1. Nf3 {[%clk 0:02:58]}  d5 {[%clk 0:02:56]} 2. g3 {[%clk 0:02:55]}  g6 {[%clk 0:02:55]} 3. Bg2 {[%clk 0:02:45]}  Bg7 {[%clk 0:02:54]} 4. d4 {[%clk 0:02:43]}  Nf6 {[%clk 0:02:53]} 5. O-O {[%clk 0:02:43]}  O-O {[%clk 0:02:53]} 6. c4 {[%clk 0:02:35]}  c6 {[%clk 0:02:51]} 7. b3 {[%clk 0:02:31]}  dxc4 {[%clk 0:02:49]} 8. bxc4 {[%clk 0:02:32]}  c5 {[%clk 0:02:50]} 9. Bb2 {[%clk 0:02:32]}  Qb6 {[%clk 0:02:47]} 10. Qc1 {[%clk 0:02:26]}  cxd4 {[%clk 0:02:47]} 11. Nxd4 {[%clk 0:02:24]}  Nc6 {[%clk 0:02:44]} 12. Nxc6 {[%clk 0:02:18]}  bxc6 {[%clk 0:02:45]} 13. Nd2 {[%clk 0:02:18]}  Bg4 {[%clk 0:02:42]} 14. Re1 {[%clk 0:02:10]}  Rfd8 {[%clk 0:02:02]} 15. Nb3 {[%clk 0:02:07]}  Rac8 {[%clk 0:01:56]} 16. Ba3 {[%clk 0:01:59]}  Qc7 {[%clk 0:01:40]} 17. Rb1 {[%clk 0:01:36]}  Qe5 {[%clk 0:01:22]} 18. Bc5 {[%clk 0:01:27]}  Rd7 {[%clk 0:01:15]} 19. e4 {[%clk 0:01:14]}  Be6 {[%clk 0:01:07]} 20. f4 {[%clk 0:01:08]}  Qh5 {[%clk 0:01:07]} 21. e5 {[%clk 0:00:41]}  Ng4 {[%clk 0:01:07]} 22. h3 {[%clk 0:00:42]}  Nh6 {[%clk 0:01:05]} 23. g4 {[%clk 0:00:32]}  Bxg4 {[%clk 0:01:05]} 24. hxg4 {[%clk 0:00:33]}  Nxg4 {[%clk 0:01:06]} 25. Nd4 {[%clk 0:00:25]}  Qh2+ {[%clk 0:00:48]} 26. Kf1 {[%clk 0:00:25]}  Bh6 {[%clk 0:00:49]} 27. Nf3 {[%clk 0:00:26]}  Qg3 {[%clk 0:00:49]} 28. Re4 {[%clk 0:00:20]}  Rd3 {[%clk 0:00:38]} 29. Rb3 {[%clk 0:00:15]}  Rcd8 {[%clk 0:00:38]} 30. Rd4 {[%clk 0:00:08]}  Qf2# {[%clk 0:00:37]} 0-1


[Site "https://www.chess.com"]

[Event "Titled Tuesday Blitz April 18 Late 2023"]
[White "Martinez Alcantara, Jose Eduardo"]
[Black "Zhigalko_Sergei"]
[WhiteFideId "3805662"]
[WhiteElo "2711"]
[BlackElo "2921"]
[Result "1-0"]
[Round "06"]
[TimeControl "180+2"]
[Date "2023.04.18"]
[WhiteClock "0:00:10"]
[BlackClock "0:00:01"]

1. Nf3 {[%clk 0:02:59]}  d5 {[%clk 0:02:59]} 2. g3 {[%clk 0:02:58]}  c6 {[%clk 0:03:00]} 3. c4 {[%clk 0:02:58]}  Bg4 {[%clk 0:02:53]} 4. Bg2 {[%clk 0:02:55]}  e6 {[%clk 0:02:52]} 5. cxd5 {[%clk 0:02:53]}  Bxf3 {[%clk 0:02:51]} 6. Bxf3 {[%clk 0:02:53]}  cxd5 {[%clk 0:02:51]} 7. O-O {[%clk 0:02:53]}  Nc6 {[%clk 0:02:51]} 8. Nc3 {[%clk 0:02:52]}  Nf6 {[%clk 0:02:50]} 9. d4 {[%clk 0:02:52]}  Be7 {[%clk 0:02:49]} 10. e3 {[%clk 0:02:52]}  O-O {[%clk 0:02:48]} 11. Bd2 {[%clk 0:02:51]}  Rc8 {[%clk 0:02:47]} 12. Qe2 {[%clk 0:02:47]}  a6 {[%clk 0:02:45]} 13. Rfc1 {[%clk 0:02:45]}  Bd6 {[%clk 0:02:29]} 14. Be1 {[%clk 0:02:42]}  Qe7 {[%clk 0:02:28]} 15. Qd1 {[%clk 0:02:37]}  Rc7 {[%clk 0:02:22]} 16. Be2 {[%clk 0:02:28]}  Rfc8 {[%clk 0:02:20]} 17. a3 {[%clk 0:02:28]}  g6 {[%clk 0:01:56]} 18. Na4 {[%clk 0:02:04]}  e5 {[%clk 0:01:34]} 19. Nc3 {[%clk 0:01:45]}  Qe6 {[%clk 0:01:24]} 20. Bf1 {[%clk 0:01:25]}  h5 {[%clk 0:01:14]} 21. Bg2 {[%clk 0:01:03]}  e4 {[%clk 0:01:10]} 22. b4 {[%clk 0:00:53]}  Ne7 {[%clk 0:00:59]} 23. Na4 {[%clk 0:00:53]}  Qg4 {[%clk 0:00:47]} 24. Rxc7 {[%clk 0:00:49]}  Rxc7 {[%clk 0:00:45]} 25. Nc5 {[%clk 0:00:48]}  Qc8 {[%clk 0:00:39]} 26. Rc1 {[%clk 0:00:46]}  Kg7 {[%clk 0:00:20]} 27. Nb3 {[%clk 0:00:46]}  Rc6 {[%clk 0:00:07]} 28. Rxc6 {[%clk 0:00:38]}  Qxc6 {[%clk 0:00:08]} 29. Nc5 {[%clk 0:00:34]}  Nc8 {[%clk 0:00:07]} 30. Bf1 {[%clk 0:00:33]}  Nb6 {[%clk 0:00:06]} 31. Qb3 {[%clk 0:00:33]}  Qc8 {[%clk 0:00:04]} 32. a4 {[%clk 0:00:31]}  h4 {[%clk 0:00:03]} 33. b5 {[%clk 0:00:32]}  Bxc5 {[%clk 0:00:02]} 34. dxc5 {[%clk 0:00:31]}  Qxc5 {[%clk 0:00:02]} 35. Bc3 {[%clk 0:00:32]}  Nc4 {[%clk 0:00:02]} 36. bxa6 {[%clk 0:00:29]}  bxa6 {[%clk 0:00:02]} 37. Bd4 {[%clk 0:00:23]}  Qd6 {[%clk 0:00:03]} 38. Bxc4 {[%clk 0:00:20]}  dxc4 {[%clk 0:00:02]} 39. Qxc4 {[%clk 0:00:21]}  hxg3 {[%clk 0:00:02]} 40. hxg3 {[%clk 0:00:21]}  g5 {[%clk 0:00:02]} 41. Kg2 {[%clk 0:00:10]}  Kg6 {[%clk 0:00:02]} 42. Bxf6 {[%clk 0:00:10]}  Kxf6 {[%clk 0:00:03]} 43. Qxe4 {[%clk 0:00:10]}  a5 {[%clk 0:00:01]} 44. g4 {[%clk 0:00:10]} 1-0


[Site "https://www.chess.com"]

[Event "Titled Tuesday Blitz April 18 Late 2023"]
[White "Duda, Jan-Krzysztof"]
[Black "Costachi, Mihnea"]
[WhiteFideId "1170546"]
[BlackFideId "1217518"]
[WhiteElo "2790"]
[BlackElo "2456"]
[Result "1-0"]
[Round "06"]
[TimeControl "180+2"]
[Date "2023.04.18"]
[WhiteClock "0:00:29"]
[BlackClock "0:00:03"]

1. e4 {[%clk 0:03:00]}  e5 {[%clk 0:02:59]} 2. Nf3 {[%clk 0:03:01]}  Nc6 {[%clk 0:02:59]} 3. c3 {[%clk 0:03:01]}  Nf6 {[%clk 0:02:54]} 4. d4 {[%clk 0:03:01]}  Nxe4 {[%clk 0:02:55]} 5. d5 {[%clk 0:02:58]}  Ne7 {[%clk 0:02:55]} 6. Nxe5 {[%clk 0:02:56]}  Ng6 {[%clk 0:02:38]} 7. Nd3 {[%clk 0:02:51]}  Be7 {[%clk 0:02:34]} 8. g3 {[%clk 0:02:37]}  O-O {[%clk 0:02:33]} 9. Bg2 {[%clk 0:02:37]}  Nf6 {[%clk 0:02:23]} 10. O-O {[%clk 0:02:36]}  d6 {[%clk 0:02:23]} 11. c4 {[%clk 0:02:36]}  Bg4 {[%clk 0:02:16]} 12. Qb3 {[%clk 0:02:34]}  Nd7 {[%clk 0:02:11]} 13. Nc3 {[%clk 0:02:21]}  Bf5 {[%clk 0:01:53]} 14. Be4 {[%clk 0:02:08]}  Bxe4 {[%clk 0:01:52]} 15. Nxe4 {[%clk 0:02:09]}  f5 {[%clk 0:01:50]} 16. Nc3 {[%clk 0:01:58]}  Rb8 {[%clk 0:01:34]} 17. Be3 {[%clk 0:01:57]}  Nde5 {[%clk 0:01:20]} 18. Nxe5 {[%clk 0:01:54]}  Nxe5 {[%clk 0:01:19]} 19. f4 {[%clk 0:01:50]}  Ng4 {[%clk 0:01:13]} 20. Bxa7 {[%clk 0:01:50]}  Ra8 {[%clk 0:01:14]} 21. Qxb7 {[%clk 0:01:50]}  Bf6 {[%clk 0:01:12]} 22. a4 {[%clk 0:01:38]}  Qe8 {[%clk 0:01:06]} 23. h3 {[%clk 0:01:20]}  Nh6 {[%clk 0:00:25]} 24. Rae1 {[%clk 0:01:17]}  Qh5 {[%clk 0:00:24]} 25. Kg2 {[%clk 0:01:18]}  g5 {[%clk 0:00:24]} 26. Re6 {[%clk 0:01:03]}  gxf4 {[%clk 0:00:22]} 27. Rxf6 {[%clk 0:00:56]}  Rxf6 {[%clk 0:00:18]} 28. Qxa8+ {[%clk 0:00:56]}  Rf8 {[%clk 0:00:19]} 29. Qc6 {[%clk 0:00:57]}  fxg3 {[%clk 0:00:18]} 30. Be3 {[%clk 0:00:45]}  f4 {[%clk 0:00:15]} 31. Rxf4 {[%clk 0:00:45]}  Nf5 {[%clk 0:00:16]} 32. Rg4+ {[%clk 0:00:40]}  Kh8 {[%clk 0:00:15]} 33. Bf4 {[%clk 0:00:34]}  Nh4+ {[%clk 0:00:15]} 34. Kxg3 {[%clk 0:00:33]}  Nf5+ {[%clk 0:00:15]} 35. Kh2 {[%clk 0:00:33]}  Nd4 {[%clk 0:00:05]} 36. Qxc7 {[%clk 0:00:30]}  Nf3+ {[%clk 0:00:03]} 37. Kg3 {[%clk 0:00:29]} 1-0


[Site "https://www.chess.com"]

[Event "Titled Tuesday Blitz April 18 Late 2023"]
[White "Smirnov, Pavel"]
[Black "Bluebaum, Matthias"]
[WhiteFideId "4123425"]
[BlackFideId "24651516"]
[WhiteElo "2519"]
[BlackElo "2638"]
[Result "0-1"]
[Round "06"]
[TimeControl "180+2"]
[Date "2023.04.18"]
[WhiteClock "0:00:07"]
[BlackClock "0:00:26"]

1. d4 {[%clk 0:03:00]}  d5 {[%clk 0:03:00]} 2. c4 {[%clk 0:03:00]}  e6 {[%clk 0:03:00]} 3. Nf3 {[%clk 0:03:00]}  Nf6 {[%clk 0:03:01]} 4. g3 {[%clk 0:03:01]}  Nc6 {[%clk 0:03:01]} 5. Bg2 {[%clk 0:02:59]}  Bd6 {[%clk 0:03:01]} 6. O-O {[%clk 0:02:58]}  O-O {[%clk 0:03:01]} 7. b3 {[%clk 0:02:53]}  dxc4 {[%clk 0:03:02]} 8. bxc4 {[%clk 0:02:52]}  e5 {[%clk 0:03:02]} 9. d5 {[%clk 0:02:25]}  Na5 {[%clk 0:03:01]} 10. Nfd2 {[%clk 0:02:22]}  c6 {[%clk 0:02:57]} 11. Nc3 {[%clk 0:02:20]}  cxd5 {[%clk 0:02:56]} 12. cxd5 {[%clk 0:02:20]}  Bd7 {[%clk 0:02:53]} 13. Bb2 {[%clk 0:02:20]}  Rc8 {[%clk 0:02:52]} 14. Nde4 {[%clk 0:02:16]}  Qb6 {[%clk 0:02:06]} 15. Rb1 {[%clk 0:01:49]}  Qa6 {[%clk 0:02:06]} 16. Nxf6+ {[%clk 0:01:35]}  gxf6 {[%clk 0:02:06]} 17. Ne4 {[%clk 0:01:36]}  Kg7 {[%clk 0:02:00]} 18. f4 {[%clk 0:01:32]}  Nc4 {[%clk 0:01:45]} 19. fxe5 {[%clk 0:01:05]}  fxe5 {[%clk 0:01:45]} 20. Nf6 {[%clk 0:00:52]}  Ba4 {[%clk 0:01:19]} 21. Qd3 {[%clk 0:00:42]}  Rh8 {[%clk 0:01:19]} 22. Qf5 {[%clk 0:00:33]}  Rc7 {[%clk 0:01:09]} 23. Nh5+ {[%clk 0:00:18]}  Kf8 {[%clk 0:01:09]} 24. Qg5 {[%clk 0:00:14]}  Rg8 {[%clk 0:00:44]} 25. Qh6+ {[%clk 0:00:11]}  Ke7 {[%clk 0:00:39]} 26. Rxf7+ {[%clk 0:00:11]}  Kd8 {[%clk 0:00:33]} 27. Qxh7 {[%clk 0:00:08]}  Rxf7 {[%clk 0:00:25]} 28. Qxg8+ {[%clk 0:00:08]}  Rf8 {[%clk 0:00:25]} 29. Qg6 {[%clk 0:00:08]}  Bc5+ {[%clk 0:00:25]} 30. Kh1 {[%clk 0:00:07]}  Qxg6 {[%clk 0:00:26]} 0-1


[Site "https://www.chess.com"]